bitfinex/quotes_BTCUSD_20240629
["timestamp","ask_amount","ask_price","bid_price","bid_amount"]
[1719695932421,0.02566446,61054.0,61053.0,0.07500425]
[1719695933049,0.02566446,61057.0,61053.0,0.05700425]
[1719695933249,0.02566446,61056.0,61053.0,0.05700425]
[1719695933447,0.02566446,61057.0,61053.0,0.07600425]
[1719695933649,0.02566446,61056.0,61053.0,0.06700425]
[1719695933849,0.02566446,61055.0,61053.0,0.05700425]
[1719695934071,0.02566446,61057.0,61053.0,0.07000425]
[1719695934272,0.02566446,61056.0,61053.0,0.05700425]
[1719695934467,0.02566446,61057.0,61053.0,0.05700425]
[1719695934717,0.02566446,61056.0,61053.0,0.05700425]
[1719695935152,0.02566446,61055.0,61053.0,0.06700425]
[1719695935327,0.02566446,61057.0,61053.0,0.07500425]
[1719695935525,0.02566446,61056.0,61053.0,0.07500425]
[1719695935776,0.02566446,61055.0,61053.0,0.06700425]
[1719695935975,0.0767,61058.0,61053.0,0.07600425]
[1719695935976,0.02566446,61057.0,61053.0,0.07600425]
[1719695936133,0.0767,61058.0,61053.0,0.07600425]
[1719695936134,0.02566446,61056.0,61053.0,0.07600425]
[1719695936332,0.02566446,61055.0,61053.0,0.06600425]
[1719695936536,0.02566446,61054.0,61053.0,0.07500425]
[1719695937147,0.02566446,61057.0,61053.0,0.06600425]
[1719695937356,0.0767,61058.0,61053.0,0.06600425]
[1719695937357,0.02566446,61056.0,61053.0,0.06600425]
[1719695937553,0.02566446,61057.0,61053.0,0.06600425]
[1719695937868,0.02566446,61056.0,61053.0,0.06600425]
[1719695938032,0.02566446,61056.0,61053.0,0.05700425]
[1719695938237,0.02566446,61055.0,61053.0,0.05700425]
[1719695938443,0.0767,61058.0,61053.0,0.05792825]
[1719695938444,0.02566446,61054.0,61053.0,0.05792825]
[1719695938680,0.0767,61058.0,61054.0,0.0892]
[1719695938887,0.02566442,61057.0,61054.0,0.0892]
[1719695939204,0.02566442,61056.0,61054.0,0.1581]
[1719695939408,0.02566442,61055.0,61054.0,0.1581]
[1719695939977,0.02566442,61057.0,61054.0,0.1581]
[1719695940181,0.02566442,61056.0,61054.0,0.1581]
[1719695940386,0.02566442,61055.0,61054.0,0.1581]
[1719695941022,0.10236442,61055.0,61054.0,0.1581]
[1719695941381,0.10236442,61055.0,61054.0,0.1691]
[1719695941886,0.10236442,61055.0,61054.0,0.1791]
[1719695945242,0.02566442,61055.0,61054.0,0.1791]
[1719695945448,0.10236442,61055.0,61054.0,0.1791]
[1719695957820,0.10236442,61055.0,61054.0,0.1051]
[1719695966322,0.10236442,61055.0,61054.0,0.0951]
[1719695967126,0.02566442,61055.0,61054.0,0.0951]
[1719695967526,0.0767,61058.0,61054.0,0.0951]
[1719695967527,0.02566442,61057.0,61054.0,0.0951]
[1719695967725,0.0767,61058.0,61054.0,0.1051]
[1719695967726,0.02566442,61056.0,61054.0,0.1051]
[1719695967925,0.02566442,61055.0,61054.0,0.1051]
[1719695968329,0.02566442,61055.0,61054.0,0.0951]
[1719695968525,0.02566442,61057.0,61054.0,0.1051]
[1719695968867,0.02566442,61056.0,61054.0,0.1051]
[1719695969217,0.02566442,61055.0,61054.0,0.1051]
[1719695969419,0.02566442,61057.0,61054.0,0.1051]
[1719695969622,0.02566442,61056.0,61054.0,0.0951]
[1719695969829,0.02566442,61057.0,61054.0,0.0951]
[1719695970110,0.02566442,61056.0,61054.0,0.0951]
[1719695970309,0.10236442,61055.0,61054.0,0.0841]
[1719695970694,0.10236442,61055.0,61054.0,0.0941]
[1719695970905,0.10236442,61055.0,61054.0,0.1021]
[1719695971427,0.10236442,61055.0,61054.0,0.0841]
[1719695971608,0.10236442,61055.0,61054.0,0.0941]
[1719695971802,0.10236442,61055.0,61054.0,0.1051]
[1719695978261,0.10236442,61055.0,61054.0,0.0951]
[1719695978754,0.10236442,61055.0,61054.0,0.1051]
[1719695979562,0.10236442,61055.0,61054.0,0.0941]
[1719695979957,0.10236442,61055.0,61054.0,0.0951]
[1719695980168,0.1611091,61068.0,61054.0,0.1051]
[1719695980380,0.0767,61056.0,61054.0,0.0941]
[1719695980576,0.02566547,61055.0,61054.0,0.1051]
[1719695981199,0.02566547,61055.0,61054.0,0.0951]
[1719695982005,0.02566547,61055.0,61054.0,0.1648]
[1719695983255,0.02566547,61055.0,61054.0,0.1748]
[1719695993219,0.02084,61069.0,61054.0,0.1748]
[1719695993424,0.0767,61055.0,61054.0,0.20007283]
[1719695993624,0.10236502,61055.0,61054.0,0.1748]
[1719695994235,0.10236502,61055.0,61054.0,0.1648]
[1719695994436,0.10236502,61055.0,61054.0,0.1658]
[1719695995928,0.10236502,61055.0,61054.0,0.1648]
[1719695996398,0.10236502,61055.0,61054.0,0.1748]
[1719695999847,0.10236502,61055.0,61054.0,0.021]
[1719696006112,0.10236502,61055.0,61054.0,0.021924]
[1719696018672,0.02566502,61055.0,61054.0,0.021924]
[1719696018868,0.10236502,61055.0,61054.0,0.021924]
[1719696021246,0.02566502,61055.0,61054.0,0.021924]
[1719696021647,0.10236502,61055.0,61054.0,0.021924]
[1719696029927,0.02566502,61055.0,61054.0,0.021924]
[1719696030140,0.10236502,61055.0,61054.0,0.021924]
[1719696031102,0.10236502,61055.0,61054.0,0.109124]
[1719696031509,0.11696276,61055.0,61054.0,0.109124]
[1719696031714,0.11696276,61055.0,61054.0,0.021924]
[1719696038820,0.10236502,61055.0,61054.0,0.021924]
[1719696039289,0.11693539,61055.0,61054.0,0.021924]
[1719696049513,0.12862893,61055.0,61054.0,0.021924]
[1719696049756,0.11693539,61055.0,61054.0,0.021924]
[1719696057204,0.04023539,61055.0,61054.0,0.021924]
[1719696057404,0.11693539,61055.0,61054.0,0.021924]
[1719696060786,0.04023539,61055.0,61054.0,0.021924]
[1719696060938,0.11693539,61055.0,61054.0,0.021924]
[1719696064693,1.11693539,61055.0,61054.0,0.021924]
[1719696066446,1.44237012,61055.0,61054.0,0.021924]
[1719696066652,1.47029626,61055.0,61054.0,0.021924]
[1719696066848,1.47029626,61055.0,61054.0,0.02186337]
[1719696067528,1.47029626,61055.0,61054.0,0.010924]
[1719696067698,1.61732589,61055.0,61054.0,0.010924]
[1719696068102,1.61732589,61055.0,61054.0,0.000924]
[1719696068508,1.61832589,61055.0,61054.0,0.000924]
[1719696072630,1.59039975,61055.0,61054.0,0.000924]
[1719696072829,1.6194365,61055.0,61054.0,0.000924]
[1719696073233,1.61945859,61055.0,61054.0,0.000924]
[1719696075877,1.59039975,61055.0,61054.0,0.000924]
[1719696076147,1.61968005,61055.0,61054.0,0.000924]
[1719696076963,1.64454739,61055.0,61054.0,0.000924]
[1719696082462,1.61526709,61055.0,61054.0,0.000924]
[1719696082665,1.64457705,61055.0,61054.0,0.000924]
[1719696085727,1.61526709,61055.0,61054.0,0.000924]
[1719696085938,1.64455034,61055.0,61054.0,0.000924]
[1719696086190,1.64454183,61055.0,61054.0,0.000924]
[1719696086544,1.74312183,61055.0,61054.0,0.000924]
[1719696086744,1.76612183,61055.0,61054.0,0.000924]
[1719696087848,1.73684709,61055.0,61054.0,0.000924]
[1719696088041,1.76612298,61055.0,61054.0,0.000924]
[1719696088858,1.73684709,61055.0,61054.0,0.000924]
[1719696089075,1.76617043,61055.0,61054.0,0.000924]
[1719696090650,1.09542607,61055.0,61054.0,0.166924]
[1719696090838,1.14725873,61055.0,61054.0,0.166924]
[1719696091045,0.87366151,61055.0,61054.0,0.166924]
[1719696091242,0.85638436,61055.0,61054.0,0.166924]
[1719696091437,0.8859109,61055.0,61054.0,0.166924]
[1719696092109,0.8859836,61055.0,61054.0,0.166924]
[1719696095139,0.85638436,61055.0,61054.0,0.166924]
[1719696095342,0.88590136,61055.0,61054.0,0.166924]
[1719696098446,0.85638436,61055.0,61054.0,0.166924]
[1719696098669,0.88592505,61055.0,61054.0,0.166924]
[1719696098882,0.85638436,61055.0,61054.0,0.166924]
[1719696099073,0.88592505,61055.0,61054.0,0.166924]
[1719696099603,0.8855534,61055.0,61054.0,0.166924]
[1719696100685,0.8088534,61055.0,61054.0,0.166924]
[1719696100922,0.8855534,61055.0,61054.0,0.166924]
[1719696101144,0.8845534,61055.0,61054.0,0.166924]
[1719696101565,0.8855534,61055.0,61054.0,0.166924]
[1719696101810,0.88551367,61055.0,61054.0,0.166924]
[1719696102046,0.88635367,61055.0,61054.0,0.166924]
[1719696102988,0.88535367,61055.0,61054.0,0.166924]
[1719696103407,0.88535367,61055.0,61054.0,0.168924]
[1719696104355,0.88535367,61055.0,61054.0,0.170924]
[1719696104819,0.85585271,61055.0,61054.0,0.170924]
[1719696105071,0.88527922,61055.0,61054.0,0.170924]
[1719696106405,0.77915271,61055.0,61054.0,0.170924]
[1719696106606,0.85585271,61055.0,61054.0,0.170924]
[1719696112038,0.88151845,61055.0,61054.0,0.170924]
[1719696118482,0.80481845,61055.0,61054.0,0.19380923]
[1719696118714,0.88151845,61055.0,61054.0,0.21380923]
[1719696118917,0.88151845,61055.0,61054.0,0.19380923]
[1719696119124,0.88151845,61055.0,61054.0,0.21380923]
[1719696119323,0.88151845,61055.0,61054.0,0.190924]
[1719696122136,0.80481845,61055.0,61054.0,0.190924]
[1719696122394,0.88151845,61055.0,61054.0,0.190924]
[1719696122630,0.88151845,61055.0,61054.0,0.170924]
[1719696123091,0.88151845,61055.0,61054.0,0.190924]
[1719696123324,0.88151845,61055.0,61054.0,0.170924]
[1719696132097,0.80481845,61055.0,61054.0,0.27271348]
[1719696133254,0.80481845,61055.0,61054.0,0.43105246]
[1719696133456,0.80481845,61055.0,61054.0,0.43505246]
[1719696134077,0.80481845,61055.0,61054.0,0.43305246]
[1719696135379,0.80481845,61055.0,61054.0,0.43405246]
[1719696135804,0.80481845,61055.0,61054.0,0.43805246]
[1719696136022,0.80481845,61055.0,61054.0,0.43105246]
[1719696136380,0.80481845,61055.0,61054.0,0.45905246]
[1719696138791,0.79277226,61055.0,61054.0,0.45905246]
[1719696138986,0.80492663,61055.0,61054.0,0.45905246]
[1719696140192,0.80492663,61055.0,61054.0,0.43105246]
[1719696140411,0.80492663,61055.0,61054.0,0.45905246]
[1719696141681,0.80492663,61055.0,61054.0,0.44505246]
[1719696141892,0.79277226,61055.0,61054.0,0.44505246]
[1719696142059,0.80492663,61055.0,61054.0,0.45905246]
[1719696142483,0.80492663,61055.0,61054.0,0.43105246]
[1719696142683,0.80492663,61055.0,61054.0,0.45905246]
[1719696143104,0.80492663,61055.0,61054.0,0.65905246]
[1719696143419,0.80492663,61055.0,61054.0,0.45905246]
[1719696149390,0.80492663,61055.0,61054.0,0.44505246]
[1719696149594,0.80492663,61055.0,61054.0,0.43105246]
[1719696149794,0.80492663,61055.0,61054.0,0.45905246]
[1719696150206,0.80492663,61055.0,61054.0,0.44505246]
[1719696151107,0.80492663,61055.0,61054.0,0.43105246]
[1719696151521,0.80492663,61055.0,61054.0,0.44505246]
[1719696152003,0.80492663,61055.0,61054.0,0.45905246]
[1719696167667,0.80492663,61055.0,61054.0,0.43905246]
[1719696170886,0.80492663,61055.0,61054.0,0.45905246]
[1719696172079,0.79277226,61055.0,61054.0,0.45905246]
[1719696172457,0.80499676,61055.0,61054.0,0.45905246]
[1719696174762,0.50634724,61055.0,61054.0,0.45905246]
[1719696180913,0.43739101,61055.0,61054.0,0.63416723]
[1719696181116,0.43739101,61055.0,61054.0,0.75716723]
[1719696182074,0.43739101,61055.0,61054.0,0.74316723]
[1719696182222,0.43739101,61055.0,61054.0,0.75716723]
[1719696182636,0.43739101,61055.0,61054.0,0.74316723]
[1719696182834,0.43739101,61055.0,61054.0,0.81986723]
[1719696183265,0.43739101,61055.0,61054.0,0.83386723]
[1719696183645,0.43739101,61055.0,61054.0,0.81986723]
[1719696184070,0.43739101,61055.0,61054.0,0.83386723]
[1719696184506,0.0122245,61055.0,61054.0,1.52141923]
[1719696184748,0.00084,61068.0,61067.0,0.07690425]
[1719696184984,0.02649442,61068.0,61067.0,0.52711595]
[1719696185400,0.02649442,61068.0,61067.0,0.72711595]
[1719696185632,0.02649442,61068.0,61067.0,1.12711595]
[1719696185841,0.00084,61068.0,61067.0,1.40001595]
[1719696186087,0.00084,61068.0,61067.0,1.41401595]
[1719696187175,0.00084,61068.0,61067.0,1.42801595]
[1719696187449,0.00084,61068.0,61067.0,1.41401595]
[1719696187675,0.00084,61069.0,61068.0,0.96443025]
[1719696187906,0.00084,61069.0,61068.0,1.41366923]
[1719696188135,0.00084,61069.0,61068.0,1.87217323]
[1719696188804,0.00084,61071.0,61070.0,1.12832625]
[1719696189024,0.00084,61071.0,61070.0,1.49036523]
[1719696189697,0.00084,61093.0,61076.0,0.92160425]
[1719696189929,0.00084,61093.0,61076.0,1.58805275]
[1719696190914,0.00084,61093.0,61076.0,1.61605275]
[1719696191539,0.00084,61093.0,61076.0,1.50144175]
[1719696192359,0.00084,61093.0,61076.0,1.48744175]
[1719696192769,0.00084,61093.0,61076.0,1.50144175]
[1719696193390,0.00084,61093.0,61076.0,1.48744175]
[1719696194513,0.00084,61093.0,61076.0,1.47344175]
[1719696194734,0.00084,61093.0,61076.0,1.50144175]
[1719696194962,0.00084,61093.0,61076.0,1.48504669]
[1719696195193,0.00084,61093.0,61076.0,1.47104669]
[1719696196843,0.00084,61093.0,61076.0,1.48504669]
[1719696198449,0.00084,61093.0,61076.0,1.26504669]
[1719696198647,0.00084,61093.0,61076.0,1.49160469]
[1719696205163,0.00084,61093.0,61076.0,1.51514345]
[1719696211940,0.00084,61093.0,61076.0,1.65128065]
[1719696214854,0.00084,61093.0,61076.0,1.65128074]
[1719696215275,0.1636,61086.0,61076.0,1.65128074]
[1719696215478,0.1636,61083.0,61076.0,1.56997728]
[1719696217882,0.1636,61083.0,61076.0,1.56998947]
[1719696218090,0.79858,61124.0,61103.0,0.05690425]
[1719696218292,0.79858,61124.0,61103.0,0.07329931]
[1719696218293,0.0767,61104.0,61103.0,0.07329931]
[1719696218493,0.10234785,61104.0,61103.0,0.07329931]
[1719696218652,0.1149231,61104.0,61103.0,0.07329931]
[1719696219382,0.1149231,61104.0,61103.0,0.47143829]
[1719696219383,0.0382231,61104.0,61103.0,0.47143829]
[1719696219583,0.0382231,61104.0,61103.0,1.01443829]
[1719696219821,0.00084,61113.0,61110.0,0.07690425]
[1719696219997,0.00084,61113.0,61110.0,0.25891034]
[1719696220391,0.02647775,61111.0,61110.0,0.25891034]
[1719696221033,0.02647775,61111.0,61110.0,0.27291034]
[1719696221443,0.03681764,61111.0,61110.0,0.27291034]
[1719696222492,0.01117989,61111.0,61110.0,0.27291034]
[1719696222946,0.01117989,61111.0,61110.0,0.28691034]
[1719696223574,0.01117989,61111.0,61110.0,0.26691034]
[1719696223831,0.01117989,61111.0,61110.0,0.28691034]
[1719696224233,0.01117989,61111.0,61110.0,0.38691034]
[1719696224437,0.00084,61111.0,61110.0,0.38691034]
[1719696224609,0.00084,61111.0,61110.0,0.37051528]
[1719696225431,0.01117989,61111.0,61110.0,0.37051528]
[1719696225631,0.00084,61111.0,61110.0,0.37051528]
[1719696228401,0.01117989,61111.0,61110.0,0.37051528]
[1719696228609,0.00084,61111.0,61110.0,0.37051528]
[1719696229837,0.00084,61111.0,61110.0,0.35651528]
[1719696230084,0.00084,61111.0,61110.0,0.37051528]
[1719696230335,0.00084,61111.0,61110.0,0.35651528]
[1719696230535,0.00084,61111.0,61110.0,0.55651528]
[1719696230980,0.00084,61111.0,61110.0,1.12951528]
[1719696231192,0.00084,61111.0,61110.0,1.93609541]
[1719696231406,0.00084,61113.0,61112.0,1.03554725]
[1719696231609,0.00084,61113.0,61112.0,1.91338647]
[1719696231813,0.00084,61113.0,61112.0,2.01123663]
[1719696232242,0.00084,61113.0,61112.0,1.98677376]
[1719696232647,0.00084,61113.0,61112.0,2.21586076]
[1719696233078,0.0667,61151.0,61130.0,0.07690425]
[1719696233288,0.0667,61151.0,61130.0,1.09891234]
[1719696233704,0.0667,61151.0,61130.0,0.89891234]
[1719696234113,0.1434,61151.0,61130.0,1.09891234]
[1719696234321,0.1434,61151.0,61130.0,0.89891234]
[1719696234526,0.0667,61151.0,61130.0,1.09901234]
[1719696234947,0.1434,61151.0,61130.0,1.09901234]
[1719696235177,0.0667,61151.0,61130.0,1.11301234]
[1719696235365,0.0767,61150.0,61130.0,1.11301234]
[1719696235788,0.0767,61150.0,61130.0,1.12701234]
[1719696235988,0.0767,61150.0,61130.0,1.11301234]
[1719696236395,0.0767,61150.0,61130.0,1.12701234]
[1719696237184,0.0767,61150.0,61130.0,0.92701234]
[1719696237518,0.0767,61150.0,61130.0,1.12701234]
[1719696238383,0.0767,61150.0,61130.0,1.11061728]
[1719696239433,0.0767,61150.0,61130.0,1.03391728]
[1719696239631,0.0667,61151.0,61130.0,1.11061728]
[1719696239852,0.0767,61149.0,61130.0,1.11061728]
[1719696240897,0.0716,61160.0,61138.0,0.84980425]
[1719696241117,0.0716,61160.0,61138.0,1.47334175]
[1719696242387,0.0716,61160.0,61138.0,1.48734175]
[1719696242821,0.0716,61160.0,61138.0,1.47334175]
[1719696243002,0.1483,61160.0,61138.0,1.48734175]
[1719696243205,0.1483,61160.0,61138.0,1.50134175]
[1719696243815,0.1483,61160.0,61138.0,1.48734175]
[1719696244012,0.1483,61160.0,61138.0,1.50134175]
[1719696244388,0.0716,61160.0,61138.0,1.50134175]
[1719696244589,0.1483,61160.0,61138.0,1.50134175]
[1719696245430,0.0716,61160.0,61138.0,1.50134175]
[1719696246220,1e-08,61139.0,61138.0,1.48494669]
[1719696250469,1e-08,61139.0,61138.0,1.62095123]
[1719696251723,1e-08,61139.0,61138.0,1.62095238]
[1719696252155,1e-08,61139.0,61138.0,1.68646338]
[1719696252356,1e-08,61139.0,61138.0,1.68646403]
[1719696254591,1e-08,61139.0,61138.0,1.68646431]
[1719696255025,1e-08,61139.0,61138.0,1.68646419]
[1719696258928,0.0716,61160.0,61159.0,0.05690425]
[1719696259104,0.0716,61160.0,61159.0,0.23563829]
[1719696259331,0.08234161,61160.0,61159.0,0.23563829]
[1719696259483,0.0716,61160.0,61159.0,0.23563829]
[1719696259691,0.08234161,61160.0,61159.0,0.23563829]
[1719696260071,0.08234161,61160.0,61159.0,0.25563829]
[1719696260708,0.08234161,61160.0,61159.0,0.26963829]
[1719696261127,0.08234161,61160.0,61159.0,0.28363829]
[1719696261319,0.08234161,61160.0,61159.0,0.26363829]
[1719696263555,0.08234161,61160.0,61159.0,0.24724323]
[1719696263845,0.08234161,61160.0,61159.0,0.26724323]
[1719696264053,0.08234161,61160.0,61159.0,0.28363829]
[1719696264268,0.08234161,61160.0,61159.0,0.26724323]
[1719696264481,0.08234161,61160.0,61159.0,0.26734323]
[1719696265059,0.08234161,61160.0,61159.0,0.24734323]
[1719696265475,0.10796075,61160.0,61159.0,0.24734323]
[1719696265892,0.10796075,61160.0,61159.0,0.23334323]
[1719696266289,0.10796075,61160.0,61159.0,0.25334323]
[1719696266489,0.10796075,61160.0,61159.0,0.26734323]
[1719696266656,0.10796075,61160.0,61159.0,0.24734323]
[1719696268567,0.03636075,61160.0,61159.0,0.54024323]
[1719696268800,0.01074161,61160.0,61159.0,0.89922906]
[1719696269042,0.1718,61170.0,61169.0,0.05690425]
[1719696269262,0.19741587,61170.0,61169.0,0.23563829]
[1719696269475,0.20823988,61170.0,61169.0,0.23563829]
[1719696270623,0.20823988,61170.0,61169.0,0.24963829]
[1719696271282,0.20823988,61170.0,61169.0,0.26363829]
[1719696271498,0.28493988,61170.0,61169.0,0.26363829]
[1719696273260,0.00732857,61173.0,61169.0,0.26363829]
[1719696273481,0.00732857,61173.0,61170.0,0.21924323]
[1719696273482,0.0767,61171.0,61170.0,0.21924323]
[1719696273684,0.02561581,61171.0,61170.0,0.21924323]
[1719696273915,0.02561581,61172.0,61171.0,0.05690425]
[1719696274142,0.02561581,61172.0,61171.0,0.21924323]
[1719696275164,0.02561581,61172.0,61171.0,0.23324323]
[1719696276311,0.13211581,61172.0,61171.0,0.24724323]
[1719696277859,0.20881581,61172.0,61171.0,0.24724323]
[1719696277981,0.13211581,61172.0,61171.0,0.24724323]
[1719696279597,0.13211581,61172.0,61171.0,0.42044323]
[1719696279598,0.02561581,61172.0,61171.0,0.42044323]
[1719696280705,0.02561581,61172.0,61171.0,0.31194323]
[1719696280860,0.02561581,61172.0,61171.0,0.23334323]
[1719696281125,0.06361581,61172.0,61171.0,0.23334323]
[1719696281299,0.12531581,61172.0,61171.0,0.0281]
[1719696281480,0.0997,61170.0,61160.0,0.1]
[1719696281683,0.0767,61164.0,61161.0,0.16233898]
[1719696281949,0.02561581,61163.0,61162.0,0.1]
[1719696282150,0.12531581,61163.0,61162.0,0.27873404]
[1719696282353,0.13443241,61163.0,61162.0,0.27873404]
[1719696282970,0.13433241,61163.0,61162.0,0.27873404]
[1719696283308,0.13433241,61163.0,61162.0,0.29273404]
[1719696283923,0.12521581,61163.0,61162.0,0.29273404]
[1719696284343,0.13431411,61163.0,61162.0,0.29273404]
[1719696284770,0.13531411,61163.0,61162.0,0.30673404]
[1719696285306,0.13521411,61163.0,61162.0,0.30673404]
[1719696286513,0.13521411,61163.0,61162.0,0.29033898]
[1719696286899,0.12611581,61163.0,61162.0,0.29033898]
[1719696287300,0.13521411,61163.0,61162.0,0.29033898]
[1719696287520,0.13511411,61163.0,61162.0,0.29033898]
[1719696287700,0.13501411,61163.0,61162.0,0.29033898]
[1719696290894,0.13491411,61163.0,61162.0,0.29033898]
[1719696291778,0.13491411,61163.0,61162.0,0.29126298]
[1719696293197,0.03521411,61163.0,61162.0,0.29453272]
[1719696293374,0.02611581,61163.0,61162.0,0.29453272]
[1719696295778,0.02611581,61163.0,61162.0,0.29463272]
[1719696295979,0.02611581,61163.0,61162.0,0.29136298]
[1719696297750,0.13751581,61163.0,61162.0,0.29136298]
[1719696298082,0.14662337,61163.0,61162.0,0.29136298]
[1719696300951,0.14662337,61163.0,61162.0,0.19136298]
[1719696301250,0.13751581,61163.0,61162.0,0.19136298]
[1719696301448,0.14661422,61163.0,61162.0,0.19136298]
[1719696301845,0.14661422,61163.0,61162.0,0.17736298]
[1719696302056,0.14661422,61163.0,61162.0,0.16336298]
[1719696302259,0.14661422,61163.0,61162.0,0.17736298]
[1719696302470,0.14761422,61163.0,61162.0,0.19136298]
[1719696302845,0.14561422,61163.0,61162.0,0.16336298]
[1719696303063,0.14661422,61163.0,61162.0,0.17736298]
[1719696303316,0.14761422,61163.0,61162.0,0.19136298]
[1719696303467,0.14661422,61163.0,61162.0,0.17736298]
[1719696303675,0.14561422,61163.0,61162.0,0.16336298]
[1719696304023,0.14661422,61163.0,61162.0,0.17736298]
[1719696304224,0.14661422,61163.0,61162.0,0.16336298]
[1719696305345,0.22321422,61163.0,61162.0,0.16336298]
[1719696305541,0.22421422,61163.0,61162.0,0.17736298]
[1719696305825,0.22421422,61163.0,61162.0,0.19136298]
[1719696305826,0.22521422,61163.0,61162.0,0.19136298]
[1719696306281,0.22421422,61163.0,61162.0,0.17736298]
[1719696306477,0.14661422,61163.0,61162.0,0.17736298]
[1719696306913,0.22321422,61163.0,61162.0,0.17736298]
[1719696307361,0.22321422,61163.0,61162.0,0.19136298]
[1719696307362,0.11281422,61163.0,61162.0,0.19136298]
[1719696307599,0.03621422,61163.0,61162.0,0.19136298]
[1719696308905,0.03621422,61163.0,61162.0,0.21136298]
[1719696309141,0.03621422,61163.0,61162.0,0.17736298]
[1719696309142,0.03521422,61163.0,61162.0,0.17736298]
[1719696309372,0.02711581,61163.0,61162.0,0.19136298]
[1719696309625,0.03623252,61163.0,61162.0,0.19136298]
[1719696309851,0.02711581,61163.0,61162.0,0.19136298]
[1719696310130,0.03623318,61163.0,61162.0,0.19136298]
[1719696315360,0.03623318,61163.0,61162.0,0.3636327]
[1719696315853,0.03623318,61163.0,61162.0,0.36036298]
[1719696316333,0.02511581,61163.0,61162.0,0.33236298]
[1719696316586,0.02711581,61163.0,61162.0,0.36036298]
[1719696316778,0.02711581,61163.0,61162.0,0.34636298]
[1719696317022,0.02611581,61163.0,61162.0,0.33236298]
[1719696317185,0.02711581,61163.0,61162.0,0.34636298]
[1719696317415,0.02611581,61163.0,61162.0,0.34636298]
[1719696317770,0.02711581,61163.0,61162.0,0.36036298]
[1719696318943,0.02711581,61163.0,61162.0,0.37436298]
[1719696319312,0.02711581,61163.0,61162.0,0.36036298]
[1719696319571,0.02711581,61163.0,61162.0,0.37436298]
[1719696321679,0.03495319,61163.0,61162.0,0.37436298]
[1719696323678,0.03495319,61163.0,61162.0,0.39436298]
[1719696324095,0.03495319,61163.0,61162.0,0.49436298]
[1719696324096,0.02795581,61163.0,61162.0,0.49436298]
[1719696325500,0.02795581,61163.0,61162.0,0.47436298]
[1719696325703,0.02795581,61163.0,61162.0,0.49436298]
[1719696331204,0.02795581,61163.0,61162.0,0.51736298]
[1719696332787,0.02795581,61163.0,61162.0,0.71736298]
[1719696333990,0.02595581,61163.0,61162.0,0.67536298]
[1719696334351,0.02595581,61163.0,61162.0,0.70336298]
[1719696334757,0.02595581,61163.0,61162.0,0.68936298]
[1719696335329,0.02595581,61163.0,61162.0,0.70336298]
[1719696335628,0.02595581,61163.0,61162.0,0.68936298]
[1719696335763,0.02595581,61163.0,61162.0,0.70336298]
[1719696336172,0.02595581,61163.0,61162.0,0.68936298]
[1719696336392,0.10854937,61181.0,61169.0,0.02]
[1719696336642,0.0766,61174.0,61170.0,0.33840819]
[1719696336852,0.03359802,61173.0,61170.0,0.33513898]
[1719696337108,0.0256144,61172.0,61170.0,0.33513898]
[1719696337764,0.00795939,61171.0,61170.0,0.33513898]
[1719696337937,0.0256144,61171.0,61170.0,0.33513898]
[1719696338138,0.0256144,61173.0,61170.0,0.33513898]
[1719696338344,0.0766,61174.0,61170.0,0.33513898]
[1719696338345,0.0256144,61172.0,61170.0,0.34913898]
[1719696338541,0.0256144,61173.0,61170.0,0.34913898]
[1719696338716,0.0256144,61172.0,61170.0,0.33513898]
[1719696338931,0.0256144,61171.0,61170.0,0.33513898]
[1719696339133,0.0256144,61173.0,61170.0,0.33513898]
[1719696339316,0.0766,61174.0,61170.0,0.33513898]
[1719696339317,0.0256144,61172.0,61170.0,0.33513898]
[1719696339513,0.0256144,61171.0,61170.0,0.33513898]
[1719696339716,0.0256144,61173.0,61170.0,0.36913898]
[1719696340500,0.0256144,61173.0,61170.0,0.35513898]
[1719696340706,0.0256144,61173.0,61170.0,0.36313898]
[1719696340912,0.0256144,61173.0,61170.0,0.19033898]
[1719696341112,0.0256144,61173.0,61170.0,0.17633898]
[1719696341361,0.0256144,61173.0,61170.0,0.19360821]
[1719696341563,0.0256144,61173.0,61170.0,0.20760821]
[1719696341990,0.0256144,61173.0,61170.0,0.19033898]
[1719696342509,0.0256144,61173.0,61170.0,0.20433898]
[1719696343277,0.0256144,61173.0,61170.0,0.17633898]
[1719696343739,0.0256144,61173.0,61170.0,0.19033898]
[1719696346633,0.0256144,61173.0,61170.0,0.27164244]
[1719696346873,0.0256144,61172.0,61171.0,0.00326923]
[1719696347077,0.0256144,61177.0,61171.0,0.16560821]
[1719696347305,0.00796851,61172.0,61171.0,0.00326923]
[1719696347514,0.0256144,61172.0,61171.0,0.00326923]
[1719696347722,0.03357198,61172.0,61170.0,0.10930346]
[1719696347896,0.0256144,61171.0,61170.0,0.09530346]
[1719696348283,0.0766,61178.0,61171.0,0.02]
[1719696348458,0.02561422,61177.0,61172.0,0.00326903]
[1719696349394,0.02561422,61177.0,61173.0,0.16233898]
[1719696350739,0.02561422,61177.0,61173.0,0.17633898]
[1719696351334,0.02561422,61177.0,61173.0,0.19033898]
[1719696352398,0.0766,61174.0,61173.0,0.20673404]
[1719696352616,0.10221422,61174.0,61173.0,0.20673404]
[1719696353537,0.10221422,61174.0,61173.0,0.19273404]
[1719696354567,0.10221422,61174.0,61173.0,0.20683404]
[1719696356580,0.11020064,61174.0,61173.0,0.20683404]
[1719696357684,0.11020064,61174.0,61173.0,0.19043898]
[1719696357926,0.11020064,61174.0,61173.0,0.19136298]
[1719696358593,0.03360064,61174.0,61173.0,0.19136298]
[1719696360097,0.03360064,61174.0,61173.0,0.19463205]
[1719696360527,0.03360064,61174.0,61173.0,0.19136298]
[1719696362559,0.11173198,61180.0,61173.0,0.19136298]
[1719696362781,0.0766,61177.0,61173.0,0.19136298]
[1719696363043,0.0256146,61176.0,61173.0,0.19136298]
[1719696363592,0.0256146,61176.0,61173.0,0.16336298]
[1719696363720,0.0256146,61176.0,61173.0,0.17736298]
[1719696363914,0.0256146,61176.0,61173.0,0.19136298]
[1719696364536,0.0256146,61176.0,61173.0,0.20536298]
[1719696366008,0.0256146,61176.0,61173.0,0.19136298]
[1719696366366,0.0256146,61176.0,61173.0,0.20536298]
[1719696366789,0.0256146,61175.0,61173.0,0.20536298]
[1719696366999,0.0256146,61174.0,61173.0,0.19136298]
[1719696367202,0.0256146,61174.0,61173.0,0.20536298]
[1719696367398,0.0256146,61177.0,61173.0,0.20536298]
[1719696367615,0.0256146,61177.0,61173.0,0.16336298]
[1719696368057,0.0256146,61177.0,61173.0,0.17736298]
[1719696368459,0.0256146,61177.0,61173.0,0.19136298]
[1719696368645,0.17302206,61177.0,61173.0,0.19136298]
[1719696369011,0.0256146,61176.0,61173.0,0.19136298]
[1719696369159,0.0256146,61176.0,61173.0,0.17736298]